fUSD/lending_fUSD_20260531
["ID","MTS","AMOUNT","RATE_DAILY","PERIOD"]
[423489465,1780159839000,-712.0,0.00025082,2]
[423489468,1780159839000,-712.0,0.00025637,2]
[423489470,1780159839000,-550.0,0.00026,2]
[423489474,1780159839000,-1213.65,0.00026151,2]
[423489478,1780159839000,-3638.0,0.00026151,2]
[423489469,1780159839000,-160.5543707,0.00025803,2]
[423489471,1780159839000,-500.0,0.00026,2]
[423489472,1780159839000,-3550.0,0.00026151,2]
[423489476,1780159839000,-418.0,0.00026151,2]
[423489477,1780159839000,-150.0,0.00026151,2]
[423489473,1780159839000,-1356.0,0.00026151,2]
[423489461,1780159839000,-391.0,0.00025,2]
[423489517,1780159839000,-312.9,0.00027702,30]
[423489535,1780159839000,-1000.0,0.00027855,4]
[423489512,1780159839000,-151.0,0.00027672,7]
[423489557,1780159839000,-661.4,0.00028033,30]
[423489549,1780159839000,-312.23,0.00027946,7]
[423489553,1780159839000,-600.0,0.00028,2]
[423489545,1780159839000,-312.9,0.00027885,30]
[423489551,1780159839000,-312.23,0.00027977,30]
[423489552,1780159839000,-312.9,0.00027977,30]
[423489548,1780159839000,-312.9,0.00027916,2]
[423489555,1780159839000,-312.9,0.00028007,2]
[423489554,1780159839000,-312.23,0.00028007,2]
[423489559,1780159839000,-613.43,0.00028033,30]
[423489569,1780159839000,-271699.9210501,0.00028098,2]
[423489558,1780159839000,-530.89,0.00028033,30]
[423489560,1780159839000,-661.73,0.00028033,30]
[423489564,1780159839000,-312.23,0.00028068,30]
[423489561,1780159839000,-530.72,0.00028033,30]
[423489562,1780159839000,-312.23,0.00028038,7]
[423489563,1780159839000,-312.9,0.00028038,7]
[423489568,1780159839000,-2410.34,0.00028097,2]
[423489565,1780159839000,-312.9,0.00028068,30]
[423489566,1780159839000,-500.0,0.00028097,120]
[423489567,1780159839000,-607.88,0.00028097,120]
[423489570,1780159839000,-13461.4418128,0.00028098,2]
[423489573,1780159839000,-151.0,0.00028098,7]
[423489571,1780159839000,-3213.8385622,0.00028098,2]
[423489575,1780159839000,-151.0,0.00028098,7]
[423489572,1780159839000,-151.0,0.00028098,7]
[423489574,1780159839000,-151.0,0.00028098,7]
[423489509,1780159839000,-312.23,0.00027641,2]
[423489577,1780159839000,-517.131074,0.00028098,7]
[423489550,1780159839000,-312.9,0.00027946,7]
[423489547,1780159839000,-312.23,0.00027916,2]
[423489576,1780159839000,-517.131074,0.00028098,7]
[423489546,1780159839000,-4800.0,0.000279,10]
[423489556,1780159839000,-615.62,0.00028033,30]
[423489514,1780159839000,-312.23,0.00027672,7]
[423489513,1780159839000,-151.0,0.00027672,7]
[423489515,1780159839000,-312.9,0.00027672,7]
[423489516,1780159839000,-312.23,0.00027702,30]
[423489521,1780159839000,-530.89,0.00027711,7]
[423489519,1780159839000,-615.62,0.00027711,7]
[423489522,1780159839000,-613.43,0.00027711,7]
[423489523,1780159839000,-661.73,0.00027711,7]
[423489528,1780159839000,-312.9,0.00027763,7]
[423489527,1780159839000,-312.23,0.00027763,7]
[423489530,1780159839000,-312.9,0.00027794,30]
[423489531,1780159839000,-200.0,0.00027807,2]
[423489526,1780159839000,-312.9,0.00027733,2]
[423489524,1780159839000,-530.72,0.00027711,7]
[423489510,1780159839000,-312.9,0.00027641,2]
[423489520,1780159839000,-661.4,0.00027711,7]
[423489529,1780159839000,-312.23,0.00027794,30]
[423489542,1780159839000,-661.73,0.00027872,2]
[423489540,1780159839000,-530.89,0.00027872,2]
[423489538,1780159839000,-615.62,0.00027872,2]
[423489537,1780159839000,-712.0,0.00027856,4]
[423489539,1780159839000,-661.4,0.00027872,2]
[423489541,1780159839000,-613.43,0.00027872,2]
[423489536,1780159839000,-312.9,0.00027855,7]
[423489532,1780159839000,-312.23,0.00027824,2]
[423489543,1780159839000,-530.72,0.00027872,2]
[423489544,1780159839000,-312.23,0.00027885,30]
[423489533,1780159839000,-312.9,0.00027824,2]
[423489534,1780159839000,-312.23,0.00027855,7]
[423489525,1780159839000,-312.23,0.00027733,2]
[423489634,1780159840000,-661.4,0.00028194,7]
[423489629,1780159840000,-607.88,0.00028129,120]
[423489630,1780159840000,-312.25,0.0002813,7]
[423489632,1780159840000,-187.08030932,0.00028193,2]
[423489621,1780159840000,-151.0,0.00028098,7]
[423489628,1780159840000,-215.58360558,0.000281,30]
[423489627,1780159840000,-312.9,0.00028099,2]
[423489631,1780159840000,-313.09,0.0002813,7]
[423489625,1780159840000,-151.0,0.00028098,7]
[423489623,1780159840000,-151.0,0.00028098,7]
[423489640,1780159840000,-152.83663662,0.00028199,2]
[423489626,1780159840000,-312.23,0.00028099,2]
[423489622,1780159840000,-151.0,0.00028098,7]
[423489636,1780159840000,-613.43,0.00028194,7]
[423489635,1780159840000,-530.89,0.00028194,7]
[423489633,1780159840000,-615.62,0.00028194,7]
[423489637,1780159840000,-661.73,0.00028194,7]
[423489644,1780159840000,-1679.55,0.000284,14]
[423489641,1780159840000,-212.35722319,0.00028199,2]
[423489639,1780159840000,-218.34425507,0.00028199,2]
[423489642,1780159840000,-172.27,0.000282,7]
[423489643,1780159840000,-202.5,0.00028267,2]
[423489638,1780159840000,-530.72,0.00028194,7]
[423489646,1780159840000,-500.0,0.00028411,2]
[423489650,1780159840000,-712.0,0.00028965,6]
[423489649,1780159840000,-150.0,0.00028897,2]
[423489624,1780159840000,-151.0,0.00028098,7]
[423489645,1780159840000,-712.0,0.00028411,5]
[423489620,1780159840000,-151.0,0.00028098,7]
[423489593,1780159840000,-180.506076,0.00028098,7]
[423489610,1780159840000,-4752.960664,0.00028098,7]
[423489578,1780159840000,-28535.6818761,0.00028098,2]
[423489582,1780159840000,-151.0,0.00028098,7]
[423489580,1780159840000,-517.131074,0.00028098,7]
[423489581,1780159840000,-201.069007,0.00028098,7]
[423489579,1780159840000,-517.131074,0.00028098,7]
[423489584,1780159840000,-201.069007,0.00028098,7]
[423489594,1780159840000,-151.0,0.00028098,7]
[423489596,1780159840000,-151.0,0.00028098,7]
[423489587,1780159840000,-151.0,0.00028098,7]
[423489586,1780159840000,-151.0,0.00028098,7]
[423489588,1780159840000,-151.0,0.00028098,7]
[423489590,1780159840000,-151.0,0.00028098,7]
[423489583,1780159840000,-201.069007,0.00028098,7]
[423489585,1780159840000,-201.069007,0.00028098,7]
[423489589,1780159840000,-151.0,0.00028098,7]
[423489592,1780159840000,-151.0,0.00028098,7]
[423489591,1780159840000,-151.0,0.00028098,7]
[423489600,1780159840000,-618.730055,0.00028098,7]
[423489604,1780159840000,-618.730055,0.00028098,7]
[423489602,1780159840000,-618.730055,0.00028098,7]
[423489606,1780159840000,-618.730055,0.00028098,7]
[423489618,1780159840000,-213.522652,0.00028098,7]
[423489608,1780159840000,-4752.960664,0.00028098,7]
[423489619,1780159840000,-213.522652,0.00028098,7]
[423489617,1780159840000,-213.522652,0.00028098,7]
[423489612,1780159840000,-4752.960664,0.00028098,7]
[423489615,1780159840000,-4752.960664,0.00028098,7]
[423489616,1780159840000,-213.522652,0.00028098,7]
[423489651,1780159840000,-7945.45839392,0.00028969,2]
[423489656,1780159840000,-155.0,0.00029,2]
[423489657,1780159840000,-155.0,0.00029,2]
[423489684,1780159840000,-169.22346525,0.00029522,2]
[423489685,1780159840000,-158.0,0.00029603,30]
[423489687,1780159840000,-152.0,0.00029603,30]
[423489686,1780159840000,-220.0,0.00029603,30]
[423489689,1780159840000,-347.0,0.00029603,30]
[423489690,1780159840000,-152.0,0.00029603,30]
[423489691,1780159840000,-153.0,0.00029603,30]
[423489688,1780159840000,-226.0,0.00029603,30]
[423489693,1780159840000,-154.0,0.00029603,30]
[423489695,1780159840000,-742.0,0.00029603,30]
[423489697,1780159840000,-1679.55,0.000297,14]
[423489703,1780159840000,-650.0,0.0003,2]
[423489699,1780159840000,-400.0,0.000298,30]
[423489694,1780159840000,-156.0,0.00029603,30]
[423489704,1780159840000,-712.0,0.00030075,7]
[423489705,1780159840000,-169.47,0.00030083,3]
[423489700,1780159840000,-928.0,0.000299,2]
[423489702,1780159840000,-315.0,0.000299,2]
[423489701,1780159840000,-772.0,0.000299,2]
[423489698,1780159840000,-1000.0,0.000297,7]
[423489706,1780159840000,-169.47,0.00030083,3]
[423489709,1780159840000,-252.48,0.000302,2]
[423489707,1780159840000,-213.32,0.00030137,2]
[423489708,1780159840000,-200.0,0.00030159,2]
[423489710,1780159840000,-202.5,0.00030239,2]
[423489711,1780159840000,-166.75,0.00030267,2]
[423489647,1780159840000,-200.0,0.00028591,2]
[423489683,1780159840000,-424.71444637,0.00029522,2]
[423489692,1780159840000,-379.0,0.00029603,30]
[423489696,1780159840000,-262.0,0.00029603,30]
[423489682,1780159840000,-305.67327324,0.00029522,2]
[423489681,1780159840000,-436.68851014,0.00029522,2]
[423489655,1780159840000,-155.0,0.00029,2]
[423489654,1780159840000,-155.0,0.00029,2]
[423489648,1780159840000,-163.0,0.00028634,3]
[423489652,1780159840000,-3444.48323501,0.00028972,2]
[423489659,1780159840000,-3550.0,0.00029151,2]
[423489669,1780159840000,-443.46119664,0.000295,64]
[423489660,1780159840000,-1086.029,0.00029151,2]
[423489658,1780159840000,-155.0,0.00029,2]
[423489667,1780159840000,-261.29760774,0.000295,64]
[423489666,1780159840000,-261.29760774,0.000295,64]
[423489663,1780159840000,-200.0,0.00029375,2]
[423489662,1780159840000,-3638.0,0.00029151,2]
[423489661,1780159840000,-418.0,0.00029151,2]
[423489653,1780159840000,-375.0,0.00029,2]
[423489668,1780159840000,-443.46119664,0.000295,64]
[423489665,1780159840000,-1000.0,0.00029499,64]
[423489679,1780159840000,-1000.0,0.00029519,6]
[423489671,1780159840000,-483.04342382,0.000295,64]
[423489673,1780159840000,-506.03183685,0.000295,64]
[423489670,1780159840000,-483.04342382,0.000295,64]
[423489678,1780159840000,-374.16061864,0.00029516,2]
[423489674,1780159840000,-521.78837753,0.000295,64]
[423489680,1780159840000,-712.0,0.0002952,6]
[423489676,1780159840000,-561.28166526,0.000295,64]
[423489675,1780159840000,-521.78837753,0.000295,64]
[423489672,1780159840000,-506.03183685,0.000295,64]
[423489664,1780159840000,-307.43907439,0.00029457,2]
[423489677,1780159840000,-561.28166526,0.000295,64]
[423489752,1780159841000,-210.01590651,0.00030993,2]
[423489749,1780159841000,-245.15934067,0.00030993,2]
[423489751,1780159841000,-186.5907854,0.00030993,2]
[423489742,1780159841000,-456.68934388,0.00030993,2]
[423489748,1780159841000,-162.61222582,0.00030993,2]
[423489745,1780159841000,-849.42889274,0.00030993,2]
[423489747,1780159841000,-295.89912205,0.00030993,2]
[423489746,1780159841000,-483.05359339,0.00030993,2]
[423489744,1780159841000,-326.10559878,0.00030993,2]
[423489753,1780159841000,-370.09098357,0.00030993,2]
[423489756,1780159841000,-154.56903594,0.00030996,2]
[423489750,1780159841000,-507.67039575,0.00030993,2]
[423489764,1780159841000,-160.0,0.000312,7]
[423489755,1780159841000,-156.67200247,0.00030996,2]
[423489769,1780159841000,-935.40154659,0.00031574,2]
[423489767,1780159841000,-250.0,0.00031372,7]
[423489757,1780159841000,-556.87236211,0.00030996,2]
[423489758,1780159841000,-337.75016351,0.00030996,2]
[423489759,1780159841000,-376.91567119,0.00030996,2]
[423489768,1780159841000,-2579.71048091,0.00031504,2]
[423489761,1780159841000,-261.44901681,0.00030996,2]
[423489760,1780159841000,-445.33029326,0.00030996,2]
[423489762,1780159841000,-1000.0,0.00031183,8]
[423489763,1780159841000,-712.0,0.00031184,8]
[423489770,1780159841000,-764.18318311,0.00031581,2]
[423489772,1780159841000,-158.0,0.00031603,30]
[423489754,1780159841000,-214.31825418,0.00030996,2]
[423489766,1780159841000,-160.0,0.000312,7]
[423489743,1780159841000,-611.34654649,0.00030993,2]
[423489717,1780159841000,-228.34467194,0.00030405,2]
[423489734,1780159841000,-742.0,0.00030603,30]
[423489716,1780159841000,-655.03276521,0.00030405,2]
[423489715,1780159841000,-561.24092795,0.00030398,2]
[423489712,1780159841000,-174.11,0.000303,7]
[423489714,1780159841000,-150.0,0.00030341,2]
[423489713,1780159841000,-172.27,0.000303,7]
[423489718,1780159841000,-458.50990986,0.00030405,2]
[423489720,1780159841000,-241.5267967,0.00030405,2]
[423489725,1780159841000,-158.0,0.00030603,30]
[423489727,1780159841000,-226.0,0.00030603,30]
[423489721,1780159841000,-338.4469305,0.00030405,2]
[423489719,1780159841000,-637.07166956,0.00030405,2]
[423489724,1780159841000,-180.0,0.00030411,120]
[423489723,1780159841000,-222.66514663,0.00030408,2]
[423489729,1780159841000,-152.0,0.00030603,30]
[423489722,1780159841000,-278.43618106,0.00030408,2]
[423489728,1780159841000,-347.0,0.00030603,30]
[423489726,1780159841000,-220.0,0.00030603,30]
[423489741,1780159841000,-873.37702028,0.00030993,2]
[423489731,1780159841000,-379.0,0.00030603,30]
[423489730,1780159841000,-153.0,0.00030603,30]
[423489732,1780159841000,-154.0,0.00030603,30]
[423489733,1780159841000,-156.0,0.00030603,30]
[423489735,1780159841000,-262.0,0.00030603,30]
[423489739,1780159841000,-748.32123727,0.00030986,2]
[423489740,1780159841000,-166.69904823,0.00030986,2]
[423489736,1780159841000,-712.0,0.00030629,7]
[423489737,1780159841000,-1000.0,0.00030719,3]
[423489738,1780159841000,-200.0,0.00030943,2]
[423489773,1780159841000,-220.0,0.00031603,30]
[423489780,1780159841000,-156.0,0.00031603,30]
[423489775,1780159841000,-347.0,0.00031603,30]
[423489807,1780159841000,-3638.0,0.00032151,2]
[423489808,1780159841000,-260.8,0.000322,12]
[423489809,1780159841000,-176.64,0.000322,12]
[423489810,1780159841000,-202.5,0.0003221,5]
[423489811,1780159841000,-150.0,0.00032229,7]
[423489816,1780159841000,-150.0,0.00032425,7]
[423489814,1780159841000,-1000.0,0.00032293,9]
[423489817,1780159841000,-160.5543707,0.00032454,2]
[423489812,1780159841000,-1000.0,0.00032231,60]
[423489815,1780159841000,-712.0,0.00032294,9]
[423489813,1780159841000,-1000.0,0.00032231,90]
[423489819,1780159841000,-150.0,0.00032502,7]
[423489821,1780159841000,-150.0,0.00032577,2]
[423489823,1780159841000,-150.0,0.00032577,2]
[423489826,1780159841000,-220.0,0.00032603,30]
[423489822,1780159841000,-150.0,0.00032577,2]
[423489825,1780159841000,-158.0,0.00032603,30]
[423489820,1780159841000,-200.0,0.00032511,2]
[423489824,1780159841000,-290.0,0.00032577,2]
[423489827,1780159841000,-226.0,0.00032603,30]
[423489830,1780159841000,-153.0,0.00032603,30]
[423489829,1780159841000,-152.0,0.00032603,30]
[423489828,1780159841000,-347.0,0.00032603,30]
[423489832,1780159841000,-154.0,0.00032603,30]
[423489831,1780159841000,-379.0,0.00032603,30]
[423489833,1780159841000,-156.0,0.00032603,30]
[423489779,1780159841000,-154.0,0.00031603,30]
[423489818,1780159841000,-1122.48185591,0.00032457,2]
[423489804,1780159841000,-271699.9210501,0.00032065,2]
[423489834,1780159841000,-742.0,0.00032603,30]
[423489806,1780159841000,-418.0,0.00032151,2]
[423489800,1780159841000,-151.0,0.00032065,7]
[423489776,1780159841000,-152.0,0.00031603,30]
[423489777,1780159841000,-153.0,0.00031603,30]
[423489778,1780159841000,-379.0,0.00031603,30]
[423489781,1780159841000,-742.0,0.00031603,30]
[423489771,1780159841000,-1679.55,0.000316,14]
[423489793,1780159841000,-150.0,0.00031956,7]
[423489783,1780159841000,-7945.45839392,0.00031714,2]
[423489785,1780159841000,-200.0,0.00031727,2]
[423489790,1780159841000,-150.0,0.00031956,7]
[423489782,1780159841000,-262.0,0.00031603,30]
[423489788,1780159841000,-1000.0,0.00031915,98]
[423489786,1780159841000,-712.0,0.00031739,9]
[423489787,1780159841000,-150.0,0.00031858,2]
[423489774,1780159841000,-226.0,0.00031603,30]
[423489789,1780159841000,-150.0,0.00031956,7]
[423489784,1780159841000,-3444.48323501,0.00031716,2]
[423489795,1780159841000,-700.0,0.00032,2]
[423489802,1780159841000,-207.58439745,0.00032065,2]
[423489799,1780159841000,-185.0,0.00032064,120]
[423489803,1780159841000,-699.528858,0.00032065,30]
[423489805,1780159841000,-3550.0,0.00032151,2]
[423489801,1780159841000,-153.422563,0.00032065,7]
[423489797,1780159841000,-607.88,0.00032064,120]
[423489796,1780159841000,-500.0,0.00032064,120]
[423489794,1780159841000,-150.0,0.00031956,7]
[423489791,1780159841000,-150.0,0.00031956,7]
[423489792,1780159841000,-150.0,0.00031956,7]
[423489798,1780159841000,-2410.34,0.00032064,2]
[423489878,1780159842000,-151.0,0.00033346,7]
[423489869,1780159842000,-618.730055,0.00033346,7]
[423489872,1780159842000,-4752.960664,0.00033346,7]
[423489868,1780159842000,-618.730055,0.00033346,7]
[423489874,1780159842000,-151.0,0.00033346,7]
[423489870,1780159842000,-4752.960664,0.00033346,7]
[423489871,1780159842000,-4752.960664,0.00033346,7]
[423489873,1780159842000,-4752.960664,0.00033346,7]
[423489867,1780159842000,-618.730055,0.00033346,7]
[423489876,1780159842000,-151.0,0.00033346,7]
[423489877,1780159842000,-151.0,0.00033346,7]
[423489861,1780159842000,-211.51532558,0.00033246,2]
[423489882,1780159842000,-213.522652,0.000334,7]
[423489879,1780159842000,-150.0,0.00033385,7]
[423489881,1780159842000,-213.522652,0.000334,7]
[423489891,1780159842000,-226.0,0.00033603,30]
[423489880,1780159842000,-1500.0,0.000334,7]
[423489883,1780159842000,-213.522652,0.000334,7]
[423489887,1780159842000,-150.0,0.00033451,2]
[423489886,1780159842000,-712.0,0.00033403,10]
[423489884,1780159842000,-213.522652,0.000334,7]
[423489885,1780159842000,-1000.0,0.00033402,10]
[423489888,1780159842000,-150.0,0.00033595,7]
[423489889,1780159842000,-158.0,0.00033603,30]
[423489890,1780159842000,-220.0,0.00033603,30]
[423489865,1780159842000,-151.0,0.00033346,7]
[423489875,1780159842000,-151.0,0.00033346,7]
[423489860,1780159842000,-1000.0,0.00033199,16]
[423489842,1780159842000,-155.0,0.00032676,3]
[423489864,1780159842000,-151.0,0.00033346,7]
[423489837,1780159842000,-151.0,0.00032606,7]
[423489836,1780159842000,-151.0,0.00032606,7]
[423489835,1780159842000,-151.0,0.00032606,7]
[423489840,1780159842000,-151.0,0.00032606,7]
[423489838,1780159842000,-151.0,0.00032606,7]
[423489841,1780159842000,-150.0,0.00032665,7]
[423489839,1780159842000,-151.0,0.00032606,7]
[423489843,1780159842000,-290.24399894,0.00032676,2]
[423489853,1780159842000,-201.069007,0.00032993,7]
[423489851,1780159842000,-230.882083,0.00032993,7]
[423489847,1780159842000,-213.32,0.00032877,2]
[423489854,1780159842000,-201.069007,0.00032993,7]
[423489863,1780159842000,-2318.0,0.00033346,11]
[423489849,1780159842000,-150.0,0.00032905,7]
[423489845,1780159842000,-150.0,0.00032776,7]
[423489846,1780159842000,-712.0,0.00032848,10]
[423489852,1780159842000,-201.069007,0.00032993,7]
[423489850,1780159842000,-201.069007,0.00032993,7]
[423489848,1780159842000,-692.94341132,0.00032877,2]
[423489856,1780159842000,-150.0,0.00033049,7]
[423489866,1780159842000,-618.730055,0.00033346,7]
[423489855,1780159842000,-167.242247,0.00032993,7]
[423489858,1780159842000,-150.0,0.00033145,7]
[423489859,1780159842000,-1000.0,0.00033167,28]
[423489857,1780159842000,-150.0,0.0003314,7]
[423489862,1780159842000,-150.0,0.00033322,7]
[423489844,1780159842000,-2318.0,0.00032706,11]
[423489895,1780159842000,-379.0,0.00033603,30]
[423489892,1780159842000,-347.0,0.00033603,30]
[423489897,1780159842000,-156.0,0.00033603,30]
[423489929,1780159842000,-246.93963,0.0003453,55]
[423489931,1780159842000,-2000.0,0.0003454,56]
[423489930,1780159842000,-2000.0,0.0003453,55]
[423489933,1780159842000,-246.93964,0.0003458,56]
[423489934,1780159842000,-2000.0,0.0003458,56]
[423489932,1780159842000,-246.93963,0.0003458,56]
[423489935,1780159842000,-2000.0,0.0003458,56]
[423489940,1780159842000,-1000.0,0.00034595,7]
[423489937,1780159842000,-2000.0,0.0003458,56]
[423489938,1780159842000,-150.0,0.00034586,7]
[423489939,1780159842000,-232.97,0.0003459,30]
[423489936,1780159842000,-2000.0,0.0003458,56]
[423489942,1780159842000,-220.0,0.00034603,30]
[423489944,1780159842000,-347.0,0.00034603,30]
[423489943,1780159842000,-226.0,0.00034603,30]
[423489945,1780159842000,-152.0,0.00034603,30]
[423489949,1780159842000,-742.0,0.00034603,30]
[423489947,1780159842000,-154.0,0.00034603,30]
[423489951,1780159842000,-1500.0,0.00034795,2]
[423489948,1780159842000,-156.0,0.00034603,30]
[423489952,1780159842000,-150.0,0.00034826,7]
[423489950,1780159842000,-150.0,0.00034687,7]
[423489946,1780159842000,-379.0,0.00034603,30]
[423489954,1780159842000,-1001.0,0.00034849,120]
[423489955,1780159842000,-722.35715371,0.00034874,120]
[423489953,1780159842000,-177.0,0.00034845,2]
[423489894,1780159842000,-157.0,0.00033603,30]
[423489928,1780159842000,-246.93964,0.0003453,55]
[423489917,1780159842000,-7945.45839392,0.00034459,2]
[423489941,1780159842000,-158.0,0.00034603,30]
[423489926,1780159842000,-246.93963,0.0003453,55]
[423489896,1780159842000,-154.0,0.00033603,30]
[423489924,1780159842000,-712.0,0.00034513,11]
[423489898,1780159842000,-742.0,0.00033603,30]
[423489899,1780159842000,-150.0,0.00033626,7]
[423489900,1780159842000,-150.0,0.00033866,7]
[423489902,1780159842000,-166.7,0.000339,120]
[423489901,1780159842000,-150.0,0.00033868,7]
[423489893,1780159842000,-152.0,0.00033603,30]
[423489905,1780159842000,-176.64,0.00034,2]
[423489915,1780159842000,-150.0,0.00034414,7]
[423489904,1780159842000,-160.0,0.00034,2]
[423489906,1780159842000,-1357.0,0.00034036,5]
[423489914,1780159842000,-150.0,0.00034346,7]
[423489909,1780159842000,-150.0,0.00034141,7]
[423489903,1780159842000,-712.0,0.00033958,11]
[423489921,1780159842000,-1000.0,0.00034512,11]
[423489927,1780159842000,-246.93964,0.0003453,55]
[423489910,1780159842000,-202.5,0.00034182,7]
[423489922,1780159842000,-151.0,0.00034512,7]
[423489919,1780159842000,-500.0,0.00034489,120]
[423489920,1780159842000,-2410.34,0.00034489,2]
[423489916,1780159842000,-3251.24493784,0.0003443,2]
[423489918,1780159842000,-3444.48323501,0.0003446,2]
[423489913,1780159842000,-150.0,0.00034323,7]
[423489908,1780159842000,-344.31148275,0.00034129,7]
[423489912,1780159842000,-1679.55,0.000342,14]
[423489907,1780159842000,-150.0,0.00034106,7]
[423489911,1780159842000,-1000.0,0.00034199,21]
[423489996,1780159843000,-2884.75459676,0.0003493,5]
[423490003,1780159843000,-150.0,0.00035124,2]
[423490002,1780159843000,-712.0,0.00035067,12]
[423490000,1780159843000,-1000.0,0.00035066,12]
[423489995,1780159843000,-2781.82699784,0.0003493,5]
[423490004,1780159843000,-1000.0,0.00035129,69]
[423489986,1780159843000,-296.7282131,0.0003493,5]
[423490001,1780159843000,-150.0,0.00035067,7]
[423489998,1780159843000,-150.0,0.00034961,7]
[423489994,1780159843000,-2682.57183977,0.0003493,5]
[423489987,1780159843000,-2236.95670847,0.0003493,5]
[423489999,1780159843000,-1000.0,0.00034999,30]
[423489997,1780159843000,-2991.49051684,0.0003493,5]
[423490006,1780159843000,-3550.0,0.00035151,2]
[423490018,1780159843000,-350.0,0.0003526,38]
[423490017,1780159843000,-1000.0,0.00035248,120]
[423490008,1780159843000,-3638.0,0.00035151,2]
[423490005,1780159843000,-582.42,0.0003513,69]
[423490007,1780159843000,-368.929,0.00035151,2]
[423490009,1780159843000,-1000.0,0.00035199,14]
[423490015,1780159843000,-350.0,0.00035216,2]
[423490014,1780159843000,-252.48,0.000352,26]
[423490010,1780159843000,-156.309999,0.000352,14]
[423490011,1780159843000,-160.0,0.000352,26]
[423490012,1780159843000,-160.0,0.000352,26]
[423490013,1780159843000,-252.48,0.000352,26]
[423490021,1780159843000,-300.0,0.00035263,2]
[423489989,1780159843000,-319.09232179,0.0003493,5]
[423490016,1780159843000,-150.0,0.00035234,7]
[423489988,1780159843000,-307.70715698,0.0003493,5]
[423489963,1780159843000,-517.131074,0.0003493,7]
[423489984,1780159843000,-286.14099624,0.0003493,5]
[423490019,1780159843000,-214.94011515,0.00035263,2]
[423489964,1780159843000,-517.131074,0.0003493,7]
[423489965,1780159843000,-517.131074,0.0003493,7]
[423489962,1780159843000,-517.131074,0.0003493,7]
[423489958,1780159843000,-151.0,0.0003493,7]
[423489959,1780159843000,-151.0,0.0003493,7]
[423489960,1780159843000,-151.0,0.0003493,7]
[423489957,1780159843000,-166.7,0.000349,120]
[423489956,1780159843000,-722.35715371,0.00034874,120]
[423489961,1780159843000,-151.0,0.0003493,7]
[423489966,1780159843000,-1000.0,0.0003493,5]
[423489969,1780159843000,-1536.04360648,0.0003493,5]
[423489980,1780159843000,-256.59241585,0.0003493,5]
[423489970,1780159843000,-221.88543241,0.0003493,5]
[423489967,1780159843000,-1428.38747117,0.0003493,5]
[423489972,1780159843000,-230.09519341,0.0003493,5]
[423489968,1780159843000,-1481.2378076,0.0003493,5]
[423489971,1780159843000,-1592.87721992,0.0003493,5]
[423489979,1780159843000,-247.43723804,0.0003493,5]
[423489974,1780159843000,-238.60871557,0.0003493,5]
[423489973,1780159843000,-1651.81367706,0.0003493,5]
[423489976,1780159843000,-711.16093774,0.0003493,5]
[423489982,1780159843000,-2080.17592889,0.0003493,5]
[423489993,1780159843000,-2586.85809042,0.0003493,5]
[423489990,1780159843000,-2319.72410669,0.0003493,5]
[423489991,1780159843000,-2405.55389863,0.0003493,5]